fUSD/lending_fUSD_20250205
["ID","MTS","AMOUNT","RATE_DAILY","PERIOD"]
[351754788,1738777863334,-782.52,0.00010168,2]
[351754789,1738777863350,-500.0,0.00010168,2]
[351754790,1738777863360,-1221.43,0.00010168,2]
[351754791,1738777863370,-502.75,0.00010168,2]
[351754792,1738777863381,-588.84,0.00010168,2]
[351754793,1738777863392,-500.0,0.00010168,2]
[351754794,1738777863403,-168.65,0.00010168,2]
[351754795,1738777863413,-500.0,0.00010168,2]
[351754796,1738777863424,-500.0,0.00010168,2]
[351754797,1738777863433,-972.33,0.00010168,2]
[351754798,1738777863443,-500.0,0.00010168,2]
[351754799,1738777863454,-500.0,0.00010168,2]
[351754800,1738777863464,-500.0,0.00010168,2]
[351754801,1738777863474,-500.0,0.00010168,2]
[351754802,1738777863485,-500.0,0.00010168,2]
[351754803,1738777863495,-797.26,0.00010168,2]
[351754804,1738777863505,-500.0,0.00010168,2]
[351754805,1738777863515,-500.0,0.00010168,2]
[351754806,1738777863525,-500.0,0.00010168,2]
[351754807,1738777863535,-500.0,0.00010168,2]
[351754808,1738777863546,-500.0,0.00010168,2]
[351754809,1738777863557,-500.0,0.00010168,2]
[351754810,1738777863567,-500.0,0.00010168,2]
[351754811,1738777863577,-500.0,0.00010168,2]
[351754812,1738777863587,-643.1,0.00010168,2]
[351754813,1738777863602,-500.0,0.00010168,2]
[351754814,1738777863614,-500.0,0.00010168,2]
[351754815,1738777863624,-1654.83,0.00010168,2]
[351754816,1738777863634,-500.0,0.00010168,2]
[351754817,1738777863644,-779.14,0.00010168,2]
[351754818,1738777863654,-500.0,0.00010168,2]
[351754819,1738777863665,-500.0,0.00010168,2]
[351754820,1738777863675,-160.34,0.00010168,2]
[351754821,1738777863685,-500.0,0.00010168,2]
[351754822,1738777863695,-500.00000001,0.00010169,2]
[351754823,1738777863705,-500.0,0.00010304,2]
[351754824,1738777863715,-500.0,0.00010304,2]
[351754825,1738777863725,-500.0,0.00010305,2]
[351754826,1738777863735,-304.48,0.00010305,2]
[351754827,1738777863744,-500.0,0.00010305,2]
[351754828,1738777863754,-462.89,0.00010305,2]
[351754829,1738777863764,-642.33,0.00010305,2]
[351754830,1738777863774,-500.0,0.00010305,2]
[351754831,1738777863784,-500.0,0.00010305,2]
[351754832,1738777863794,-500.0,0.00010305,2]
[351754833,1738777863804,-500.0,0.00010305,2]
[351754834,1738777863816,-500.0,0.00010305,2]
[351754835,1738777863826,-500.0,0.00010305,2]
[351754836,1738777863836,-500.0,0.00010305,2]
[351754837,1738777863849,-233.44,0.00010305,2]
[351754838,1738777863860,-500.0,0.00010305,2]
[351754839,1738777863871,-500.0,0.00010305,2]
[351754840,1738777863881,-500.0,0.00010305,2]
[351754841,1738777863891,-500.0,0.00010305,2]
[351754842,1738777863901,-500.0,0.00010305,2]
[351754843,1738777863912,-349.44,0.00010305,2]
[351754844,1738777863922,-262.36,0.00010305,2]
[351754845,1738777863932,-782.52,0.00010305,2]
[351754846,1738777863942,-500.0,0.00010305,2]
[351754847,1738777863951,-1221.43,0.00010305,2]
[351754848,1738777863962,-588.84,0.00010305,2]
[351754849,1738777863972,-415.14,0.00010305,2]
[351754850,1738777863982,-500.0,0.00010305,2]
[351754851,1738777863992,-500.0,0.00010305,2]
[351754852,1738777864002,-972.33,0.00010305,2]
[351754853,1738777864012,-500.0,0.00010305,2]
[351754854,1738777864022,-500.0,0.00010305,2]
[351754855,1738777864031,-500.0,0.00010305,2]
[351754856,1738777864041,-500.0,0.00010305,2]
[351754857,1738777864051,-392.96,0.00010305,2]
[351754858,1738777864060,-797.26,0.00010305,2]
[351754859,1738777864069,-626.88,0.00010305,2]
[351754860,1738777864079,-500.0,0.00010305,2]
[351754861,1738777864089,-500.0,0.00010305,2]
[351754862,1738777864102,-500.0,0.00010305,2]
[351754863,1738777864112,-500.0,0.00010305,2]
[351754864,1738777864121,-500.0,0.00010305,2]
[351754865,1738777864131,-500.0,0.00010305,2]
[351754866,1738777864141,-500.0,0.00010305,2]
[351754867,1738777864150,-643.1,0.00010305,2]
[351754868,1738777864161,-348.36,0.00010305,2]
[351754869,1738777864171,-500.0,0.00010305,2]
[351754870,1738777864182,-1654.83,0.00010305,2]
[351754871,1738777864191,-500.0,0.00010305,2]
[351754872,1738777864201,-779.14,0.00010305,2]
[351754873,1738777864210,-500.0,0.00010305,2]
[351754874,1738777864219,-500.0,0.00010305,2]
[351754875,1738777864229,-500.0,0.00010305,2]
[351754876,1738777864239,-1219.14,0.00010382,2]
[351754877,1738777864248,-500.0,0.00010441,2]
[351754878,1738777864258,-500.0,0.00010441,2]
[351754879,1738777864267,-239.18,0.00010442,2]
[351754880,1738777864277,-500.0,0.00010442,2]
[351754881,1738777864287,-500.0,0.00010442,2]
[351754882,1738777864296,-500.0,0.00010442,2]
[351754883,1738777864306,-500.0,0.00010442,2]
[351754884,1738777864315,-500.0,0.00010442,2]
[351754885,1738777864325,-460.96,0.00010442,2]
[351754886,1738777864336,-500.0,0.00010442,2]
[351754887,1738777864348,-500.0,0.00010442,2]
[351754888,1738777864358,-375.97,0.00010442,2]
[351754889,1738777864367,-500.0,0.00010442,2]
[351754890,1738777864377,-500.0,0.00010442,2]
[351754891,1738777864387,-500.0,0.00010442,2]
[351754892,1738777864396,-500.0,0.00010442,2]
[351754893,1738777864406,-782.52,0.00010442,2]
[351754894,1738777864416,-500.0,0.00010442,2]
[351754895,1738777864426,-1221.43,0.00010442,2]
[351754896,1738777864435,-588.84,0.00010442,2]
[351754897,1738777864493,-522.24759532,0.00010442,2]
[351754898,1738777864503,-388.55,0.00010442,2]
[351754899,1738777864512,-972.33,0.00010442,2]
[351754900,1738777864522,-500.0,0.00010442,2]
[351754901,1738777864532,-500.0,0.00010442,2]
[351754902,1738777864541,-500.0,0.00010442,2]
[351754903,1738777864551,-500.0,0.00010442,2]
[351754904,1738777864560,-797.26,0.00010442,2]
[351754905,1738777864570,-500.0,0.00010442,2]
[351754906,1738777864580,-285.68,0.00010442,2]
[351754907,1738777864589,-500.0,0.00010442,2]
[351754908,1738777864599,-500.0,0.00010442,2]
[351754909,1738777864609,-640.32,0.00010442,2]
[351754910,1738777864619,-500.0,0.00010442,2]
[351754911,1738777864628,-500.0,0.00010442,2]
[351754912,1738777864638,-643.1,0.00010442,2]
[351754913,1738777864648,-547.44,0.00010442,2]
[351754914,1738777864658,-1654.83,0.00010442,2]
[351754915,1738777864668,-500.0,0.00010442,2]
[351754916,1738777864677,-779.14,0.00010442,2]
[351754917,1738777864687,-500.0,0.00010442,2]
[351754918,1738777864696,-500.0,0.00010442,2]
[351754919,1738777864706,-500.0,0.00010442,2]
[351754920,1738777864716,-500.0,0.00010578,2]
[351754921,1738777864726,-500.0,0.00010578,2]
[351754922,1738777864735,-428.69,0.00010579,2]
[351754923,1738777864745,-500.0,0.00010579,2]
[351754924,1738777864754,-500.0,0.00010579,2]
[351754925,1738777864764,-641.78,0.00010579,2]
[351754926,1738777864775,-637.13,0.00010579,2]
[351754927,1738777864785,-500.0,0.00010579,2]
[351754928,1738777864795,-500.0,0.00010579,2]
[351754929,1738777864805,-500.0,0.00010579,2]
[351754930,1738777864814,-500.0,0.00010579,2]
[351754931,1738777864823,-407.59,0.00010579,2]
[351754932,1738777864833,-500.0,0.00010579,2]
[351754933,1738777864842,-782.52,0.00010579,2]
[351754934,1738777864856,-500.0,0.00010579,2]
[351754935,1738777864867,-1221.43,0.00010579,2]
[351754936,1738777864877,-588.84,0.00010579,2]
[351754937,1738777864887,-972.33,0.00010579,2]
[351754938,1738777864898,-500.0,0.00010579,2]
[351754939,1738777864907,-500.0,0.00010579,2]
[351754940,1738777864918,-595.71833099,0.00010579,2]
[351754941,1738777864928,-500.0,0.00010579,2]
[351754942,1738777864938,-797.26,0.00010579,2]
[351754943,1738777864948,-235.32,0.00010579,2]
[351754944,1738777864958,-358.03,0.00010579,2]
[351754945,1738777864968,-500.0,0.00010579,2]
[351754946,1738777864979,-500.0,0.00010579,2]
[351754947,1738777864988,-461.9,0.00010579,2]
[351754948,1738777864997,-643.1,0.00010579,2]
[351754949,1738777865007,-1654.83,0.00010579,2]
[351754950,1738777865016,-327.67,0.00010579,2]
[351754951,1738777865025,-779.14,0.00010579,2]
[351754952,1738777865035,-500.0,0.00010579,2]
[351754953,1738777865044,-500.0,0.00010579,2]
[351754954,1738777865054,-500.0,0.00010579,2]
[351754955,1738777865065,-515.21938993,0.0001062,2]
[351754956,1738777865075,-500.0,0.00010715,2]
[351754957,1738777865084,-500.0,0.00010715,2]
[351754958,1738777865093,-500.0,0.00010716,2]
[351754959,1738777865104,-500.0,0.00010716,2]
[351754960,1738777865114,-500.0,0.00010716,2]
[351754961,1738777865124,-500.0,0.00010716,2]
[351754962,1738777865134,-500.0,0.00010716,2]
[351754963,1738777865143,-308.48,0.00010716,2]
[351754964,1738777865152,-500.0,0.00010716,2]
[351754965,1738777865162,-782.52,0.00010716,2]
[351754966,1738777865172,-500.0,0.00010716,2]
[351754967,1738777865181,-1221.43,0.00010716,2]
[351754968,1738777865191,-588.84,0.00010716,2]
[351754969,1738777865200,-972.33,0.00010716,2]
[351754970,1738777865210,-500.0,0.00010716,2]
[351754971,1738777865220,-500.0,0.00010716,2]
[351754972,1738777865230,-500.0,0.00010716,2]
[351754973,1738777865240,-797.26,0.00010716,2]
[351754974,1738777865250,-500.0,0.00010716,2]
[351754975,1738777865260,-500.0,0.00010716,2]
[351754976,1738777865270,-643.1,0.00010716,2]
[351754977,1738777865280,-1654.83,0.00010716,2]
[351754978,1738777865289,-779.14,0.00010716,2]
[351754979,1738777865299,-500.0,0.00010716,2]
[351754980,1738777865309,-500.0,0.00010716,2]
[351754981,1738777865319,-500.0,0.00010716,2]
[351754982,1738777865328,-320.6,0.00010852,2]
[351754983,1738777865338,-500.0,0.00010852,2]
[351754984,1738777865356,-500.0,0.00010853,2]
[351754985,1738777865366,-500.0,0.00010853,2]
[351754986,1738777865375,-500.0,0.00010853,2]
[351754987,1738777865386,-500.0,0.00010853,2]
[351754988,1738777865397,-500.0,0.00010853,2]
[351754989,1738777865407,-500.0,0.00010853,2]
[351754990,1738777865416,-782.52,0.00010853,2]
[351754991,1738777865428,-500.0,0.00010853,2]
[351754992,1738777865438,-1221.43,0.00010853,2]
[351754993,1738777865448,-588.84,0.00010853,2]
[351754994,1738777865458,-972.33,0.00010853,2]
[351754995,1738777865467,-500.0,0.00010853,2]
[351754996,1738777865478,-321.42,0.00010853,2]
[351754997,1738777865488,-500.0,0.00010853,2]
[351754998,1738777865498,-797.26,0.00010853,2]
[351754999,1738777865508,-500.0,0.00010853,2]
[351755000,1738777865518,-252.16,0.00010853,2]
[351755001,1738777865528,-643.1,0.00010853,2]
[351755002,1738777865537,-1654.83,0.00010853,2]
[351755003,1738777865547,-779.14,0.00010853,2]
[351755004,1738777865556,-500.0,0.00010853,2]
[351755005,1738777865566,-500.0,0.00010853,2]
[351755006,1738777865576,-500.0,0.00010853,2]
[351755007,1738777865585,-151.08814574,0.000109,2]
[351755008,1738777865594,-151.08814574,0.000109,2]
[351755009,1738777865606,-151.08814574,0.000109,2]
[351755010,1738777865617,-152.0,0.00010925,3]
[351755011,1738777865626,-454.81,0.00010976,2]
[351755012,1738777865636,-1484.0,0.00010976,2]
[351755013,1738777865645,-500.0,0.00010989,2]
[351755014,1738777865654,-500.0,0.0001099,2]
[351755015,1738777865663,-500.0,0.0001099,2]
[351755016,1738777865673,-500.0,0.0001099,2]
[351755017,1738777865682,-500.0,0.0001099,2]
[351755018,1738777865692,-500.0,0.0001099,2]
[351755019,1738777865701,-500.0,0.0001099,2]
[351755020,1738777865710,-782.52,0.0001099,2]
[351755021,1738777865720,-500.0,0.0001099,2]
[351755022,1738777865729,-1221.43,0.0001099,2]
[351755023,1738777865739,-588.84,0.0001099,2]
[351755024,1738777865749,-972.33,0.0001099,2]
[351755025,1738777865758,-404.28,0.0001099,2]
[351755026,1738777865768,-238.42,0.0001099,2]
[351755027,1738777865778,-797.26,0.0001099,2]
[351755028,1738777865787,-500.0,0.0001099,2]
[351755029,1738777865796,-643.1,0.0001099,2]
[351755030,1738777865805,-1654.83,0.0001099,2]
[351755031,1738777865815,-779.14,0.0001099,2]
[351755032,1738777865824,-500.0,0.0001099,2]
[351755033,1738777865834,-500.0,0.0001099,2]
[351755034,1738777865843,-500.0,0.0001099,2]
[351755035,1738777865855,-878.52,0.00011041,2]
[351755036,1738777865864,-500.0,0.00011127,2]
[351755037,1738777865874,-500.0,0.00011127,2]
[351755038,1738777865883,-500.0,0.00011127,2]
[351755039,1738777865893,-500.0,0.00011127,2]
[351755040,1738777865903,-500.0,0.00011127,2]
[351755041,1738777865912,-500.0,0.00011127,2]
[351755042,1738777865922,-782.52,0.00011127,2]
[351755043,1738777865931,-500.0,0.00011127,2]
[351755044,1738777865941,-1221.43,0.00011127,2]
[351755045,1738777865950,-588.84,0.00011127,2]
[351755046,1738777865959,-972.33,0.00011127,2]
[351755047,1738777865969,-797.26,0.00011127,2]
[351755048,1738777865979,-500.0,0.00011127,2]
[351755049,1738777865988,-643.1,0.00011127,2]
[351755050,1738777865997,-1654.83,0.00011127,2]
[351755051,1738777866007,-779.14,0.00011127,2]
[351755052,1738777866016,-343.02,0.00011127,2]
[351755053,1738777866026,-500.0,0.00011127,2]
[351755054,1738777866035,-500.0,0.00011127,2]
[351755055,1738777866044,-151.08814574,0.00011202,2]
[351755056,1738777866054,-479.3,0.00011206,2]
[351755057,1738777866063,-1000.0,0.0001122,2]
[351755058,1738777866073,-515.21938993,0.0001126,2]
[351755059,1738777866081,-602.41,0.00011264,2]
[351755060,1738777866090,-500.0,0.00011264,2]
[351755061,1738777866100,-500.0,0.00011264,2]
[351755062,1738777866110,-394.05,0.00011264,2]
[351755063,1738777866120,-500.0,0.00011264,2]
[351755064,1738777866129,-500.0,0.00011264,2]
[351755065,1738777866138,-500.0,0.00011264,2]
[351755066,1738777866147,-782.52,0.00011264,2]
[351755067,1738777866157,-500.0,0.00011264,2]
[351755068,1738777866166,-1221.43,0.00011264,2]
[351755069,1738777866176,-588.84,0.00011264,2]
[351755070,1738777866185,-972.33,0.00011264,2]
[351755071,1738777866195,-797.26,0.00011264,2]
[351755072,1738777866204,-500.0,0.00011264,2]
[351755073,1738777866213,-643.1,0.00011264,2]
[351755074,1738777866223,-1654.83,0.00011264,2]
[351755075,1738777866232,-779.14,0.00011264,2]
[351755076,1738777866242,-500.0,0.00011264,2]
[351755077,1738777866251,-500.0,0.00011264,2]
[351755078,1738777866261,-183.12,0.00011268,2]
[351755079,1738777866271,-630.97448025,0.00011297,2]
[351755080,1738777866280,-167906.28175272,0.00011298,2]
[351755081,1738777866290,-152.0,0.0001135,4]
[351755082,1738777866299,-4843.0,0.0001137,2]
[351755083,1738777866308,-50057.0,0.0001137,2]
[351755084,1738777866318,-500.0,0.00011401,2]
[351755085,1738777866327,-500.0,0.00011401,2]
[351755086,1738777866338,-500.0,0.00011401,2]
[351755087,1738777866355,-499.1,0.00011401,2]
[351755088,1738777866364,-615.78947168,0.00011401,2]
[351755089,1738777866374,-782.52,0.00011401,2]
[351755090,1738777866385,-392.26240468,0.00011401,2]
[351755091,1738777866395,-1221.43,0.00011401,2]
[351755092,1738777866404,-588.84,0.00011401,2]
[351755093,1738777866414,-972.33,0.00011401,2]
[351755094,1738777866424,-797.26,0.00011401,2]
[351755095,1738777866434,-500.0,0.00011401,2]
[351755096,1738777866444,-643.1,0.00011401,2]
[351755097,1738777866454,-1654.83,0.00011401,2]
[351755098,1738777866463,-779.14,0.00011401,2]
[351755099,1738777866472,-299.28,0.00011401,2]
[351755100,1738777866482,-500.0,0.00011401,2]
[351755101,1738777866491,-500.0,0.00011499,2]
[351755102,1738777866501,-500.0,0.00011499,2]
[351755103,1738777866511,-500.0,0.00011499,2]
[351755104,1738777866521,-500.0,0.00011499,2]
[351755105,1738777866532,-500.0,0.00011499,2]
[351755106,1738777866542,-649.80797817,0.00011499,2]
[351755107,1738777866552,-4169786.84112995,0.000115,2]
[351755108,1738777866806,-500.0,8.936e-05,2]
[351755109,1738777866816,-500.0,0.00011126,2]
[351755110,1738777866826,-6862.26236505,0.000115,2]
[351755111,1738777866838,-2205.29298145,0.000115,2]
[351755112,1738777866862,-389.11456675,8.935e-05,2]
[351755113,1738777867467,-222.82889275,8.798e-05,2]
[351755114,1738777867477,-327.64902306,8.799e-05,2]
[351755115,1738777867489,-172.35097694,8.799e-05,2]
[351755116,1738777867499,-1669.1582,8.836e-05,2]
[351755117,1738777867510,-500.0,8.934e-05,2]
[351755118,1738777867520,-110.88543325,8.935e-05,2]
[351755119,1738777867530,-500.0,8.935e-05,2]
[351755120,1738777867541,-634.67,8.936e-05,2]
[351755121,1738777867551,-500.0,9.071e-05,2]
[351755122,1738777867561,-604.02,9.072e-05,2]
[351755123,1738777867571,-408.17902527,9.072e-05,2]
[351755124,1738777867581,-4.77536453,9.208e-05,2]
[351755125,1738777867601,-495.22463547,9.208e-05,2]
[351755126,1738777867611,-500.0,9.345e-05,2]
[351755127,1738777867622,-551.88,9.482e-05,2]
[351755128,1738777867633,-500.0,0.00011263,2]
[351755129,1738777867643,-500.0,0.000114,2]
[351755130,1738777867655,-393895.5433708,0.000115,2]
[351755131,1738777867873,-500.0,8.798e-05,2]
[351755132,1738777867884,-500.0,8.798e-05,2]
[351755133,1738777867894,-317.91208725,8.798e-05,2]
[351755134,1738777867923,-182.08791275,8.798e-05,2]
[351755135,1738777867933,-500.0,8.935e-05,2]
[351755136,1738777868114,-500.0,8.935e-05,2]
[351755137,1738777868124,-500.0,8.935e-05,2]
[351755138,1738777868134,-500.0,9.072e-05,2]
[351755139,1738777868144,-500.0,9.072e-05,2]
[351755140,1738777868153,-294.18510737,9.072e-05,2]
[351755141,1738777868194,-205.81489263,9.072e-05,2]
[351755142,1738777868204,-500.0,9.209e-05,2]
[351755143,1738777868213,-1454.18510737,0.000115,2]
[351755146,1738778673663,395.1,8.046e-05,2]
[351755147,1738778997479,2098.16,7.891e-05,2]
[351755148,1738779019331,746.28,7.876e-05,2]
[351755149,1738779019356,1106.14,7.876e-05,2]
[351755150,1738779028630,-1031.86,8.179e-05,2]
[351755151,1738779028652,-300.0,8.192e-05,2]
[351755152,1738779028676,-8668.14,8.193e-05,2]
[351755153,1738779029095,-10000.0,8.193e-05,2]
[351755154,1738779029414,-5231.86,8.193e-05,2]
[351755155,1738779029437,-1158.6,8.219e-05,2]
[351755156,1738779029457,-250.0,8.229e-05,2]
[351755157,1738779029478,-733.3946,8.256e-05,2]
[351755158,1738779029500,-1500.0,8.27e-05,2]
[351755159,1738779029520,-1126.1454,8.388e-05,2]
[351755160,1738779030084,-873.8546,8.388e-05,2]
[351755161,1738779030107,-1000.0,8.399e-05,2]
[351755162,1738779030130,-150.0,8.399e-05,2]
[351755163,1738779030153,-7976.1454,8.4e-05,2]
[351755164,1738779030614,-10000.0,8.4e-05,2]
[351755200,1738779032436,-8198.8846,8.4e-05,2]
[351755202,1738779032446,-450.74,8.472e-05,2]
[351755204,1738779032455,-3673.10367293,8.472e-05,2]
[351755215,1738779032551,-999.992,8.472e-05,2]
[351755232,1738779032714,-6293.32438016,8.472e-05,2]
[351755235,1738779032729,-4263.18475063,8.472e-05,2]
[351755237,1738779032742,-1393.76088253,8.472e-05,2]
[351755252,1738779038251,-435.98,8.267e-05,2]
[351755253,1738779038261,-528.65217687,8.472e-05,2]
[351755254,1738779038273,-1438.54061176,8.472e-05,2]
[351755255,1738779038402,-14703.69807311,8.472e-05,2]
[351755256,1738779038415,-277.40067284,8.472e-05,2]
[351755257,1738779038426,-7088.20277917,8.472e-05,2]
[351755258,1738779038436,-515.21938993,8.472e-05,2]
[351755259,1738779038445,-436.23,8.472e-05,2]
[351755260,1738779038455,-299.99,8.472e-05,2]
[351755261,1738779038464,-172.45,8.64e-05,2]
[351755262,1738779038475,-511.1197,8.699e-05,2]
[351755263,1738779038485,-266.4928,8.699e-05,2]
[351755264,1738779038494,-1296.3847,8.699e-05,2]
[351755265,1738779038504,-8265.9771,8.699e-05,2]
[351755266,1738779038513,-500.0,8.798e-05,2]
[351755267,1738779038523,-500.0,8.798e-05,2]
[351755268,1738779038532,-500.0,8.798e-05,2]
[351755269,1738779038543,-500.0,8.798e-05,2]
[351755270,1738779038552,-500.0,8.798e-05,2]
[351755271,1738779038562,-500.0,8.798e-05,2]
[351755272,1738779038572,-500.0,8.798e-05,2]
[351755273,1738779038581,-500.0,8.798e-05,2]
[351755274,1738779038591,-500.0,8.798e-05,2]
[351755275,1738779038601,-500.0,8.798e-05,2]
[351755276,1738779038610,-500.0,8.798e-05,2]
[351755277,1738779038620,-500.0,8.798e-05,2]
[351755278,1738779038630,-143.28166709,8.798e-05,2]
[351755279,1738779038642,-356.71833291,8.798e-05,2]
[351755280,1738779038651,-500.0,8.798e-05,2]
[351755281,1738779038661,-500.0,8.798e-05,2]
[351755282,1738779038671,-500.0,8.798e-05,2]
[351755283,1738779038680,-500.0,8.798e-05,2]
[351755284,1738779038690,-500.0,8.798e-05,2]
[351755285,1738779038699,-500.0,8.798e-05,2]
[351755287,1738779038709,-500.0,8.798e-05,2]
[351755289,1738779038719,-343.28166709,8.798e-05,2]
[351755291,1738779038734,-156.71833291,8.798e-05,2]
[351755292,1738779038744,-500.0,8.798e-05,2]
[351755294,1738779038753,-500.0,8.798e-05,2]
[351755296,1738779038763,-500.0,8.798e-05,2]
[351755298,1738779038774,-500.0,8.798e-05,2]
[351755300,1738779038783,-500.0,8.798e-05,2]
[351755302,1738779038794,-446.85266943,8.798e-05,2]
[351755306,1738779038806,-53.14733057,8.798e-05,2]
[351755309,1738779038816,-500.0,8.798e-05,2]
[351755311,1738779038825,-500.0,8.798e-05,2]
[351755313,1738779038834,-500.0,8.798e-05,2]
[351755315,1738779038844,-500.0,8.798e-05,2]
[351755317,1738779038854,-500.0,8.798e-05,2]
[351755319,1738779038863,-500.0,8.798e-05,2]
[351755321,1738779038873,-500.0,8.798e-05,2]
[351755323,1738779038883,-500.0,8.798e-05,2]
[351755325,1738779038894,-500.0,8.798e-05,2]
[351755327,1738779038904,-500.0,8.798e-05,2]
[351755329,1738779038913,-500.0,8.798e-05,2]
[351755331,1738779038923,-500.0,8.798e-05,2]
[351755333,1738779038932,-500.0,8.798e-05,2]
[351755335,1738779038942,-500.0,8.798e-05,2]
[351755337,1738779038951,-500.0,8.798e-05,2]
[351755338,1738779038960,-500.0,8.798e-05,2]
[351755340,1738779038970,-500.0,8.798e-05,2]
[351755342,1738779038979,-500.0,8.798e-05,2]
[351755344,1738779038988,-500.0,8.798e-05,2]
[351755346,1738779038997,-500.0,8.798e-05,2]
[351755348,1738779039006,-500.0,8.798e-05,2]
[351755350,1738779039015,-500.0,8.798e-05,2]
[351755352,1738779039025,-500.0,8.798e-05,2]
[351755354,1738779039034,-500.0,8.798e-05,2]
[351755356,1738779039046,-500.0,8.798e-05,2]
[351755358,1738779039055,-500.0,8.798e-05,2]
[351755360,1738779039065,-500.0,8.798e-05,2]
[351755362,1738779039074,-500.0,8.798e-05,2]
[351755364,1738779039084,-500.0,8.798e-05,2]
[351755366,1738779039093,-500.0,8.798e-05,2]
[351755368,1738779039103,-500.0,8.798e-05,2]
[351755370,1738779039112,-500.0,8.798e-05,2]
[351755372,1738779039122,-500.0,8.798e-05,2]
[351755374,1738779039132,-500.0,8.798e-05,2]
[351755376,1738779039143,-500.0,8.798e-05,2]
[351755402,1738779039396,-500.0,8.798e-05,2]
[351755404,1738779039407,-500.0,8.798e-05,2]
[351755406,1738779039417,-500.0,8.798e-05,2]
[351755409,1738779039427,-500.0,8.798e-05,2]
[351755411,1738779039436,-500.0,8.798e-05,2]
[351755413,1738779039446,-500.0,8.798e-05,2]
[351755415,1738779039456,-500.0,8.798e-05,2]
[351755417,1738779039466,-500.0,8.798e-05,2]
[351755419,1738779039475,-500.0,8.798e-05,2]
[351755420,1738779039484,-500.0,8.798e-05,2]
[351755422,1738779039493,-500.0,8.798e-05,2]
[351755424,1738779039503,-500.0,8.798e-05,2]
[351755426,1738779039512,-500.0,8.798e-05,2]
[351755428,1738779039522,-500.0,8.798e-05,2]
[351755430,1738779039531,-500.0,8.798e-05,2]
[351755432,1738779039543,-500.0,8.798e-05,2]
[351755434,1738779039554,-500.0,8.798e-05,2]
[351755436,1738779039563,-500.0,8.798e-05,2]
[351755438,1738779039572,-500.0,8.798e-05,2]
[351755440,1738779039581,-500.0,8.798e-05,2]
[351755442,1738779039590,-500.0,8.798e-05,2]
[351755444,1738779039600,-500.0,8.798e-05,2]
[351755446,1738779039609,-500.0,8.798e-05,2]
[351755448,1738779039618,-500.0,8.798e-05,2]
[351755450,1738779039628,-500.0,8.798e-05,2]
[351755452,1738779039638,-500.0,8.798e-05,2]
[351755454,1738779039647,-500.0,8.798e-05,2]
[351755456,1738779039657,-500.0,8.798e-05,2]
[351755458,1738779039666,-500.0,8.798e-05,2]
[351755460,1738779039676,-500.0,8.798e-05,2]
[351755462,1738779039685,-500.0,8.798e-05,2]
[351755464,1738779039694,-500.0,8.798e-05,2]
[351755466,1738779039703,-500.0,8.798e-05,2]
[351755468,1738779039713,-500.0,8.798e-05,2]
[351755470,1738779039727,-500.0,8.798e-05,2]
[351755472,1738779039737,-500.0,8.798e-05,2]
[351755474,1738779039747,-500.0,8.798e-05,2]
[351755476,1738779039757,-500.0,8.798e-05,2]
[351755478,1738779039767,-500.0,8.798e-05,2]